fUSD/lending_fUSD_20240916
["ID","MTS","AMOUNT","RATE_DAILY","PERIOD"]
[338328458,1726499758227,500.0,0.00028,120]
[338328459,1726499758311,961.21,0.00028,120]
[338328460,1726499758398,500.0,0.00028,120]
[338328461,1726499758481,1489.58,0.00028,120]
[338328462,1726499758576,500.0,0.00028,120]
[338328463,1726499758658,961.21,0.00028,120]
[338328464,1726499758741,500.0,0.00028,120]
[338328465,1726499758822,1489.58,0.00028,120]
[338328466,1726499758907,500.0,0.00028,120]
[338328467,1726499759132,500.0,0.00028,120]
[338328468,1726499759224,1489.58,0.00028,120]
[338328469,1726499759302,961.21,0.00028,120]
[338328470,1726499759405,500.0,0.00028,120]
[338328471,1726499759485,500.0,0.00028,120]
[338328472,1726499759571,1489.58,0.00028,120]
[338328473,1726499759654,961.21,0.00028,120]
[338328474,1726499759739,500.0,0.00028,120]
[338328475,1726499759820,263.2,0.00028,120]
[338328476,1726499759902,1489.58,0.00028,120]
[338328477,1726499759980,961.21,0.00028,120]
[338328478,1726499760061,500.0,0.00028,120]
[338328479,1726499760147,1489.58,0.00028,120]
[338328480,1726499760260,961.21,0.00028,120]
[338328481,1726499760357,500.0,0.00028,120]
[338328482,1726499760451,1489.58,0.00028,120]
[338328483,1726499760544,961.21,0.00028,120]
[338328484,1726499760630,156.1,0.00028,120]
[338328485,1726499760730,1489.58,0.00028,120]
[338328486,1726499760864,961.21,0.00028,120]
[338328487,1726499760971,1489.58,0.00028,120]
[338328488,1726499761060,961.21,0.00028,120]
[338328489,1726499761152,1489.58,0.00028,120]
[338328490,1726499761245,961.21,0.00028,120]
[338328491,1726499761345,1489.58,0.00028,120]
[338328492,1726499761433,961.21,0.00028,120]
[338328493,1726499761548,1489.58,0.00028,120]
[338328494,1726499761653,961.21,0.00028,120]
[338328495,1726499761755,961.21,0.00028,120]
[338328496,1726499761849,1000.0,0.00028,120]
[338328497,1726499761993,1489.58,0.00028,120]
[338328498,1726499762084,961.21,0.00028,120]
[338328499,1726499762286,1489.73,0.00028,120]
[338328500,1726499762367,961.21,0.00028,120]
[338328501,1726499762450,1000.0,0.00028,120]
[338328502,1726499762572,961.21,0.00028,120]
[338328503,1726499762657,1000.0,0.00028,120]
[338328504,1726499762850,961.21,0.00028,120]
[338328505,1726499762943,1000.0,0.00028,120]
[338328506,1726499763168,961.21,0.00028,120]
[338328507,1726499763273,1205.47,0.00028,120]
[338328508,1726499763434,961.21,0.00028,120]
[338328509,1726499763573,1205.47,0.00028,120]
[338328510,1726499763824,1205.47,0.00028,120]
[338328511,1726499764083,961.21,0.00028,120]
[338328512,1726499764167,1205.47,0.00028,120]
[338328513,1726499764460,1205.47,0.00028,120]
[338328514,1726499764544,961.21,0.00028,120]
[338328515,1726499764644,961.21,0.00028,120]
[338328516,1726499764732,1205.47,0.00028,120]
[338328517,1726499764924,1726.64,0.00028,120]
[338328518,1726499765008,961.41,0.00028,120]
[338328519,1726499765090,1205.47,0.00028,120]
[338328520,1726499765463,1205.47,0.00028,120]
[338328521,1726499765635,1726.64,0.00028,120]
[338328522,1726499765722,1205.47,0.00028,120]
[338328523,1726499765804,1726.64,0.00028,120]
[338328524,1726499765891,1205.47,0.00028,120]
[338328525,1726499766101,625.88,0.00028,120]
[338328526,1726499766187,1205.47,0.00028,120]
[338328527,1726499766274,1726.64,0.00028,120]
[338328528,1726499766399,1205.47,0.00028,120]
[338328529,1726499766491,625.88,0.00028,120]
[338328530,1726499766737,1726.64,0.00028,120]
[338328531,1726499766925,1205.47,0.00028,120]
[338328532,1726499767020,625.88,0.00028,120]
[338328533,1726499767114,1726.64,0.00028,120]
[338328534,1726499767203,1205.47,0.00028,120]
[338328535,1726499767294,625.88,0.00028,120]
[338328536,1726499767381,1726.64,0.00028,120]
[338328537,1726499767471,1205.47,0.00028,120]
[338328538,1726499767605,625.88,0.00028,120]
[338328539,1726499767761,1726.64,0.00028,120]
[338328540,1726499767843,1205.47,0.00028,120]
[338328541,1726499767926,625.88,0.00028,120]
[338328542,1726499768010,1726.64,0.00028,120]
[338328543,1726499768097,500.0,0.00028,120]
[338328544,1726499768183,1205.47,0.00028,120]
[338328545,1726499768271,625.88,0.00028,120]
[338328546,1726499768351,1726.64,0.00028,120]
[338328547,1726499768430,500.0,0.00028,120]
[338328548,1726499768520,1205.47,0.00028,120]
[338328549,1726499768604,625.88,0.00028,120]
[338328550,1726499768685,1726.64,0.00028,120]
[338328551,1726499768768,1205.47,0.00028,120]
[338328552,1726499768849,500.0,0.00028,120]
[338328553,1726499768930,625.88,0.00028,120]
[338328554,1726499769017,1726.64,0.00028,120]
[338328555,1726499769097,1205.47,0.00028,120]
[338328556,1726499769173,500.0,0.00028,120]
[338328557,1726499769258,625.88,0.00028,120]
[338328558,1726499769358,1205.47,0.00028,120]
[338328559,1726499769440,625.88,0.00028,120]
[338328560,1726499769519,500.0,0.00028,120]
[338328561,1726499769609,1205.47,0.00028,120]
[338328562,1726499769685,625.88,0.00028,120]
[338328563,1726499769770,500.0,0.00028,120]
[338328564,1726499769853,1205.47,0.00028,120]
[338328565,1726499769934,625.88,0.00028,120]
[338328566,1726499770016,500.0,0.00028,120]
[338328567,1726499770184,1205.47,0.00028,120]
[338328568,1726499770265,625.88,0.00028,120]
[338328569,1726499770354,500.0,0.00028,120]
[338328570,1726499770436,625.88,0.00028,120]
[338328571,1726499770527,500.0,0.00028,120]
[338328572,1726499770604,625.88,0.00028,120]
[338328573,1726499770693,500.0,0.00028,120]
[338328574,1726499770772,625.88,0.00028,120]
[338328575,1726499770853,500.0,0.00028,120]
[338328576,1726499770934,625.88,0.00028,120]
[338328577,1726499771010,1726.64,0.00028,120]
[338328578,1726499771100,500.0,0.00028,120]
[338328579,1726499771182,625.88,0.00028,120]
[338328580,1726499771259,1726.64,0.00028,120]
[338328581,1726499771341,500.0,0.00028,120]
[338328582,1726499771425,625.88,0.00028,120]
[338328583,1726499771502,1726.64,0.00028,120]
[338328584,1726499771617,500.0,0.00028,120]
[338328585,1726499771698,625.88,0.00028,120]
[338328586,1726499771777,1726.64,0.00028,120]
[338328587,1726499771948,625.88,0.00028,120]
[338328588,1726499772028,1726.64,0.00028,120]
[338328589,1726499772220,625.88,0.00028,120]
[338328590,1726499772301,527.03,0.00028,120]
[338328591,1726499772388,1726.64,0.00028,120]
[338328592,1726499772472,582.35,0.00028,120]
[338328593,1726499772556,625.88,0.00028,120]
[338328594,1726499772718,582.35,0.00028,120]
[338328595,1726499772978,582.35,0.00028,120]
[338328596,1726499773066,1726.64,0.00028,120]
[338328597,1726499773268,582.35,0.00028,120]
[338328598,1726499773355,1726.64,0.00028,120]
[338328599,1726499773578,1726.64,0.00028,120]
[338328600,1726499773657,582.35,0.00028,120]
[338328601,1726499773843,1726.64,0.00028,120]
[338328602,1726499773928,582.35,0.00028,120]
[338328603,1726499774111,582.35,0.00028,120]
[338328604,1726499774190,1726.64,0.00028,120]
[338328605,1726499774374,582.35,0.00028,120]
[338328606,1726499774450,1438.31,0.00028,120]
[338328607,1726499774694,1726.75,0.00028,120]
[338328608,1726499774771,1438.31,0.00028,120]
[338328609,1726499774849,582.35,0.00028,120]
[338328610,1726499774935,1438.31,0.00028,120]
[338328611,1726499775012,582.35,0.00028,120]
[338328612,1726499775209,1438.31,0.00028,120]
[338328613,1726499775286,582.35,0.00028,120]
[338328614,1726499775644,582.35,0.00028,120]
[338328615,1726499775725,1438.31,0.00028,120]
[338328616,1726499775817,582.35,0.00028,120]
[338328617,1726499775897,1438.31,0.00028,120]
[338328618,1726499776008,582.35,0.00028,120]
[338328619,1726499776118,1438.31,0.00028,120]
[338328620,1726499776279,582.35,0.00028,120]
[338328621,1726499776417,1438.31,0.00028,120]
[338328622,1726499776534,582.35,0.00028,120]
[338328623,1726499776692,1438.31,0.00028,120]
[338328624,1726499776792,582.35,0.00028,120]
[338328625,1726499776961,1438.31,0.00028,120]
[338328626,1726499777180,582.35,0.00028,120]
[338328627,1726499777262,1438.31,0.00028,120]
[338328628,1726499777494,582.35,0.00028,120]
[338328629,1726499777576,1438.31,0.00028,120]
[338328630,1726499777756,582.35,0.00028,120]
[338328631,1726499777835,1438.31,0.00028,120]
[338328632,1726499778050,1438.31,0.00028,120]
[338328633,1726499778128,582.35,0.00028,120]
[338328634,1726499778356,582.35,0.00028,120]
[338328635,1726499778438,1438.31,0.00028,120]
[338328636,1726499778628,582.35,0.00028,120]
[338328637,1726499778710,1438.31,0.00028,120]
[338328638,1726499778887,582.55,0.00028,120]
[338328639,1726499778972,1438.31,0.00028,120]
[338328640,1726499779304,1438.31,0.00028,120]
[338328641,1726499779615,1438.31,0.00028,120]
[338328642,1726499779904,1438.31,0.00028,120]
[338328643,1726499780168,1327.68306209,0.00028,120]
[338328645,1726499844483,1976.0,0.00026,60]
[338328646,1726500044434,3000.0,0.00026,60]
[338328647,1726500101097,5000.0,0.00026,60]
[338328648,1726500120053,1976.0,0.00026,60]
[338328649,1726500136441,503.0,0.00026,60]
[338328651,1726500189145,3000.0,0.00026,60]
[338328652,1726500214043,18.1902193,0.00011765,2]
[338328653,1726500214072,336.4797807,0.00011765,2]
[338328654,1726500231098,188.78,0.00010959,2]
[338328655,1726500233867,966.0,0.00026,60]
[338328674,1726500386233,1382.57,0.00013696,30]
[338328706,1726500631858,-151.26,0.0001299,2]
[338328709,1726500631867,-298.74,0.00012999,2]
[338328712,1726500631879,-29.44982613,0.00012999,2]
[338328714,1726500631888,-150.0,0.00012999,2]
[338328716,1726500631897,-911.09600187,0.00013,2]
[338328718,1726500631908,-579.913739,0.00013,2]
[338328722,1726500632100,-904.8607206,0.00013,2]
[338328723,1726500632111,-267.95,0.00013,2]
[338328724,1726500632122,-3150.20515077,0.00013,2]
[338328733,1726500638018,-611.96949687,0.00012899,2]
[338328734,1726500638027,-3886.28585161,0.0001299,2]
[338328735,1726500638036,-30392.68121494,0.00013,2]
[338328736,1726500638048,-5818.5138,0.00013,2]
[338328784,1726500640111,-1183.23229563,0.00013,2]
[338328797,1726500642881,-58091.48049439,0.00013,2]
[338328798,1726500642893,-5629.68405523,0.00013,2]
[338328849,1726500645871,-2382.9921083,0.00013,2]
[338328850,1726500646172,-5887.41112506,0.00013,2]
[338328852,1726500698479,347.45,0.0001119,2]
[338328853,1726500790563,153.45,0.00010959,2]
[338328856,1726501190724,5000.0,0.00026,60]
[338328857,1726501297281,350.13,0.0001068,2]
[338328858,1726501405218,250.0,0.00012487,2]
[338328859,1726501418348,1905.10661486,0.0001264,2]
[338328860,1726501426529,273.14,0.00012549,2]
[338328897,1726501526334,1000.0,0.00026,60]
[338328898,1726501528097,1000.0,0.00026,61]
[338328902,1726501554135,554.24,0.0001261,2]
[338328920,1726501635739,150.0,0.000126,2]
[338328935,1726501701271,347.21675698,0.00012603,2]
[338328957,1726501771773,-1500.0,0.00012707,2]
[338328958,1726501771800,-1395.854,0.0001274,2]
[338328959,1726501771826,-378.13368908,0.0001274,2]
[338328964,1726501831809,332.62,0.00011379,2]
[338328969,1726501832018,-0.87231092,0.0001274,2]
[338328970,1726501832027,-150.0,0.0001287,2]
[338328971,1726501832036,-150.0,0.00012904,2]
[338328972,1726501832045,-157.97286422,0.00012921,2]
[338328973,1726501832055,-13.36088277,0.00012921,2]
[338328974,1726501832121,-149.190535,0.00012921,2]
[338328975,1726501832130,-2093.51960255,0.00012943,2]
[338328976,1726501832142,-4133.05,0.00012972,2]
[338328977,1726501832151,-150.0,0.00012972,2]
[338328978,1726501832160,-267.2279407,0.00012973,2]
[338328979,1726501832170,-1315.5257858,0.00012973,2]
[338328984,1726501832645,-68.51588788,0.00012973,2]
[338328985,1726501832659,-1078.02832632,0.00012973,2]
[338328986,1726501832668,-115.77747818,0.00012973,2]
[338328987,1726501832687,-384.21252182,0.00012973,2]
[338328988,1726501832696,-195.23747818,0.00012973,2]
[338329003,1726501838486,-150.0,0.00012856,2]
[338329004,1726501838496,-2414.44491418,0.00012973,2]
[338329021,1726501840018,-523.64760764,0.00012973,2]
[338329022,1726501840028,-150.99,0.00012973,2]
[338329023,1726501840037,-200.5886342,0.00012973,2]
[338329024,1726501840046,-175.01683303,0.00012973,2]
[338329025,1726501840055,-160.35288505,0.00012973,2]
[338329026,1726501840065,-500.0,0.00012973,2]
[338329027,1726501840074,-288.64273074,0.00012973,2]
[338329028,1726501840093,-211.35726926,0.00012973,2]
[338329029,1726501840102,-4721.39475057,0.0001299,2]
[338329030,1726501840111,-151.21,0.0001299,2]
[338329031,1726501840122,-310.48035729,0.00012999,2]
[338329032,1726501840131,-474.90645564,0.00012999,2]
[338329033,1726501840143,-501.62294051,0.00012999,2]
[338329034,1726501840153,-500.0,0.00012999,2]
[338329035,1726501840163,-500.0,0.00012999,2]
[338329036,1726501840172,-500.0,0.00012999,2]
[338329037,1726501840182,-500.0,0.00012999,2]
[338329038,1726501840191,-366.50325308,0.00012999,2]
[338329039,1726501840201,-519366.05683519,0.00013,2]
[338329040,1726501840281,-600.12148597,0.00013,2]
[338329041,1726501840292,-1666.0218171,0.00013,2]
[338329072,1726501842980,-428.1195466,0.00013,2]
[338329075,1726501842991,-848.75678596,0.00013,2]
[338329077,1726501843002,-1213.0,0.00013,2]
[338329121,1726501843631,-3572.7675236,0.00013,2]
[338329123,1726501843646,-20197.87405999,0.00013,2]
[338329159,1726501845920,-4504.11154586,0.00013,2]
[338329160,1726501845929,-445.76,0.00013021,2]
[338329161,1726501845938,-157.97286414,0.00013168,2]
[338329162,1726501845947,-163.51,0.00013229,2]
[338329163,1726501845956,-157.97286414,0.00013416,2]
[338329164,1726501845965,-162.55141774,0.00013416,2]
[338329165,1726501845974,-347.21675698,0.00013419,2]
[338329166,1726501845983,-332.62,0.00013643,2]
[338329167,1726501845992,-157.97286414,0.00013663,2]
[338329168,1726501846002,-5294.04446844,0.000139,3]
[338329169,1726501846011,-157.97286414,0.00013911,2]
[338329170,1726501846021,-162.55141774,0.00013911,2]
[338329171,1726501846030,-882.34074474,0.0001399,3]
[338329172,1726501846039,-20892.52009967,0.00014,2]
[338329173,1726501846050,-379.71008372,0.00014,2]
[338329174,1726501846061,-1104.89183922,0.00014,2]
[338329175,1726501846072,-2247.9574,0.00014,2]
[338329176,1726501846193,-369.15130269,0.00014,2]
[338329177,1726501846204,-972.18785791,0.00014,2]
[338329178,1726501846217,-4653.17427561,0.00014,2]
[338329179,1726501846226,-324.24499998,0.00014009,2]
[338329180,1726501846235,-150.0,0.00014074,2]
[338329181,1726501846244,-273.14,0.00014118,2]
[338329182,1726501846253,-673.495135,0.00014133,2]
[338329183,1726501846262,-157.97286414,0.00014158,2]
[338329184,1726501846271,-158.7,0.00014185,2]
[338329185,1726501846280,-554.24,0.00014186,2]
[338329186,1726501846290,-1000.0,0.000143,2]
[338329187,1726501846299,-673.495135,0.0001431,2]
[338329188,1726501846308,-493.19378236,0.00014329,2]
[338329189,1726501846317,-500.0,0.00014342,2]
[338329190,1726501846326,-257.60837948,0.00014349,2]
[338329191,1726501846335,-157.97286414,0.00014405,2]
[338329192,1726501846344,-162.55141774,0.00014405,2]
[338329193,1726501846353,-150.0,0.00014439,2]
[338329194,1726501846362,-1500.0,0.00014476,2]
[338329195,1726501846371,-673.495135,0.00014486,2]
[338329196,1726501846381,-150.0,0.00014515,2]
[338329197,1726501846389,-150.0,0.00014523,2]
[338329198,1726501846399,-882.34074474,0.00014532,3]
[338329199,1726501846408,-150.0,0.00014537,2]
[338329200,1726501846428,-150.0,0.00014541,2]
[338329201,1726501846437,-1547.0,0.00014542,2]
[338329202,1726501846446,-624.0,0.00014542,2]
[338329203,1726501846455,-431.461,0.00014542,2]
[338329204,1726501846464,-543.577,0.00014542,2]
[338329205,1726501846474,-931.0,0.00014542,2]
[338329206,1726501846483,-810.0,0.00014542,2]
[338329207,1726501846492,-150.0,0.00014542,2]
[338329208,1726501846502,-558.0,0.00014542,2]
[338329209,1726501846511,-1901.0,0.00014542,2]
[338329210,1726501846521,-551.525,0.00014542,2]
[338329211,1726501846530,-3342.0,0.00014542,2]
[338329212,1726501846539,-1920.0,0.00014542,2]
[338329213,1726501846548,-804.0,0.00014542,2]
[338329214,1726501846557,-248.0,0.00014542,2]
[338329215,1726501846566,-150.0,0.00014542,2]
[338329216,1726501846575,-152.0,0.00014542,2]
[338329217,1726501846584,-1080.0,0.00014542,2]
[338329218,1726501846593,-200.0,0.00014542,2]
[338329219,1726501846602,-163.0,0.00014542,2]
[338329220,1726501846611,-164.99,0.00014542,2]
[338329221,1726501846620,-151.569,0.00014542,2]
[338329222,1726501846629,-209.076,0.00014542,2]
[338329223,1726501846638,-150.0,0.00014548,2]
[338329224,1726501846647,-1500.0,0.00014579,2]
[338329225,1726501846656,-500.0,0.00014582,2]
[338329226,1726501846666,-200.0,0.00014582,2]
[338329227,1726501846675,-882.34074474,0.00014589,3]
[338329228,1726501846683,-152.63909011,0.00014596,2]
[338329229,1726501846693,-23659.48743755,0.00014599,2]
[338329230,1726501846702,-151.0,0.00014599,2]
[338329231,1726501846711,-151.0,0.00014599,2]
[338329232,1726501846720,-151.0,0.00014599,2]
[338329233,1726501846729,-151.0,0.00014599,2]
[338329234,1726501846739,-151.0,0.00014599,2]
[338329235,1726501846747,-151.0,0.00014599,2]
[338329236,1726501846756,-153.067999,0.00014599,2]
[338329237,1726501846765,-184.431937,0.00014599,2]
[338329238,1726501846776,-151.0,0.00014599,2]
[338329239,1726501846785,-151.0,0.00014599,2]
[338329240,1726501846794,-151.0,0.00014599,2]
[338329241,1726501846803,-151.0,0.00014599,2]
[338329242,1726501846812,-151.0,0.00014599,2]
[338329243,1726501846821,-238.027759,0.00014599,2]
[338329244,1726501846830,-151.0,0.00014599,2]
[338329245,1726501846839,-151.0,0.00014599,2]
[338329246,1726501846848,-151.0,0.00014599,2]
[338329247,1726501846857,-151.0,0.00014599,2]
[338329248,1726501846867,-151.0,0.00014599,2]
[338329249,1726501846876,-404.036288,0.00014599,2]
[338329250,1726501846885,-404.036288,0.00014599,2]
[338329251,1726501846894,-151.0,0.00014599,2]
[338329252,1726501846903,-157.482985,0.00014599,2]
[338329253,1726501846912,-157.482985,0.00014599,2]
[338329254,1726501846921,-151.0,0.00014599,2]
[338329255,1726501846931,-151.0,0.00014599,2]
[338329256,1726501846940,-151.0,0.00014599,2]
[338329257,1726501846949,-151.0,0.00014599,2]
[338329258,1726501846958,-151.0,0.00014599,2]
[338329259,1726501846968,-151.0,0.00014599,2]
[338329260,1726501846977,-151.0,0.00014599,2]
[338329261,1726501846986,-151.0,0.00014599,2]
[338329262,1726501846995,-151.0,0.00014599,2]
[338329263,1726501847004,-151.0,0.00014599,2]
[338329264,1726501847014,-151.0,0.00014599,2]
[338329265,1726501847025,-151.0,0.00014599,2]
[338329266,1726501847034,-222.652587,0.00014599,2]
[338329267,1726501847043,-151.0,0.00014599,2]
[338329268,1726501847228,-151.0,0.00014599,2]
[338329269,1726501847237,-236.842578,0.00014599,2]
[338329270,1726501847246,-186.093475,0.00014599,2]
[338329271,1726501847255,-152.886775,0.00014599,2]
[338329272,1726501847265,-151.0,0.00014599,2]
[338329273,1726501847281,-151.0,0.00014599,2]
[338329274,1726501847290,-151.0,0.00014599,2]
[338329275,1726501847299,-377.145337,0.00014599,2]
[338329276,1726501847308,-151.0,0.00014599,2]
[338329277,1726501847317,-377.145337,0.00014599,2]
[338329278,1726501847327,-151.0,0.00014599,2]
[338329279,1726501847336,-151.0,0.00014599,2]
[338329280,1726501847345,-859.891993,0.000146,2]
[338329281,1726501847354,-166.45037287,0.000146,2]
[338329282,1726501847363,-303.38,0.000146,2]
[338329283,1726501847372,-1269.13769,0.000146,2]
[338329284,1726501847381,-171.02536145,0.000146,2]
[338329285,1726501847390,-3348.45263679,0.000146,2]
[338329286,1726501847403,-384.50318454,0.000146,2]
[338329287,1726501847414,-236.35714011,0.000146,2]
[338329288,1726501847423,-150.0,0.00014627,2]
[338329289,1726501847433,-150.0,0.00014648,2]
[338329290,1726501847442,-141.64285936,0.00014648,2]
[338329291,1726501847453,-304.11714064,0.00014648,2]
[338329292,1726501847463,-147.22285936,0.0001465,4]
[338329293,1726501847475,-857.11417482,0.0001465,4]
[338329294,1726501847484,-157.97286414,0.00014653,2]
[338329295,1726501847493,-673.495135,0.00014663,2]
[338329296,1726501847502,-500.0,0.00014673,2]
[338329297,1726501847512,-500.0,0.00014673,2]
[338329298,1726501847524,-166.45037283,0.00014675,2]
[338329299,1726501847534,-8823.4074474,0.0001469,3]
[338329300,1726501847544,-204.0,0.0001469,2]
[338329301,1726501847553,-151.0,0.0001469,2]
[338329302,1726501847563,-152.573835,0.0001469,2]
[338329303,1726501847573,-220.14078339,0.00014699,2]
[338329304,1726501847583,-151.0,0.00014699,2]
[338329305,1726501847592,-151.0,0.00014699,2]
[338329306,1726501847601,-151.0,0.00014699,2]
[338329307,1726501847610,-151.0,0.00014699,2]
[338329308,1726501847619,-151.0,0.00014699,2]
[338329309,1726501847628,-169.84925897,0.00014699,2]
[338329310,1726501847637,-150.0,0.00014699,2]
[338329311,1726501847646,-893.0,0.00014699,2]
[338329312,1726501847655,-183.31339681,0.000147,2]
[338329313,1726501847663,-17384.78532706,0.000147,2]
[338329314,1726501847675,-893.45390043,0.000147,2]
[338329315,1726501847684,-56998.04268616,0.000147,2]
[338329316,1726501847701,-2091.0265999,0.000147,2]
[338329317,1726501847712,-1033.05017563,0.000147,2]
[338329322,1726501877418,151.1,0.00010959,2]
[338329323,1726501888487,500.0,0.00012999,2]
[338329324,1726501888514,646.65374584,0.00012999,2]
[338329325,1726501888553,500.0,0.00012999,2]
[338329326,1726501888593,500.0,0.00012999,2]
[338329327,1726501888656,300.0,0.00012999,2]
[338329328,1726501906488,402.11035589,0.00012999,2]
[338329348,1726501970835,533.22,0.00026,60]
[338329349,1726502010753,533.22,0.00026,60]
[338329350,1726502022558,533.22,0.00026,60]
[338329352,1726502032952,533.22,0.00026,60]
[338329353,1726502045506,533.22,0.00026,60]
[338329371,1726502336793,318.66,0.00011661,2]
[338329378,1726502706462,500.0,0.00025999,60]
[338329382,1726502776482,444.49012643,0.00025999,60]
[338329384,1726502800310,386220.29,0.00026,60]
[338329386,1726502819055,297445.83,0.00026,60]
[338329388,1726502837629,250.0,0.00025999,60]
[338329389,1726502839113,311.78,0.00011639,2]
[338329396,1726502896261,250.0,0.00025999,60]
[338329412,1726502957324,250.0,0.00025999,60]
[338329428,1726503032066,-154.11,0.00013513,2]
[338329429,1726503032076,-182.90913656,0.00013533,2]
[338329431,1726503032088,-1317.09086344,0.00013533,2]
[338329433,1726503032098,-250.0,0.00013541,2]
[338329434,1726503032108,-250.0,0.00013541,2]
[338329435,1726503032117,-250.0,0.00013552,2]
[338329436,1726503032126,-332.55,0.00013558,2]
[338329437,1726503032136,-667.45,0.00013613,2]
[338329438,1726503032146,-169.66,0.00013629,2]
[338329439,1726503032155,-150.01,0.00013699,2]
[338329440,1726503032165,-311.78,0.00013902,2]
[338329441,1726503032175,-154.11,0.00013904,2]
[338329442,1726503032185,-499.99,0.00013914,2]
[338329443,1726503032194,-154.11,0.00013915,2]
[338329444,1726503032204,-3651.37,0.00013924,2]
[338329445,1726503032214,-533.573805,0.00014133,2]
[338329446,1726503032223,-150.01,0.00014269,2]
[338329447,1726503032232,-533.573805,0.0001431,2]
[338329448,1726503032242,-253.38563,0.00014434,2]
[338329449,1726503032251,-152.67502348,0.00014459,2]
[338329450,1726503032261,-150.0,0.00014486,2]
[338329451,1726503032270,-533.573805,0.00014486,2]
[338329452,1726503032280,-150.0,0.0001449,2]
[338329453,1726503032289,-154.11,0.00014511,2]
[338329454,1726503032299,-500.0,0.00014521,2]
[338329455,1726503032308,-150.0,0.00014523,2]
[338329456,1726503032317,-10168.699,0.00014523,2]
[338329457,1726503032326,-5860.0,0.00014523,2]
[338329458,1726503032336,-1145.0,0.00014523,2]
[338329459,1726503032345,-156.263,0.00014542,2]
[338329460,1726503032354,-150.0,0.00014543,2]
[338329461,1726503032363,-150.0,0.00014543,2]
[338329462,1726503032372,-2452.73898,0.0001455,2]
[338329463,1726503032381,-1500.0,0.00014559,2]
[338329464,1726503032391,-154.11,0.00014572,2]
[338329465,1726503032400,-154.11,0.0001458,2]
[338329466,1726503032409,-154.11,0.0001458,2]
[338329467,1726503032418,-500.0,0.00014582,2]
[338329468,1726503032428,-200.0,0.00014582,2]
[338329469,1726503032437,-7617.50009236,0.0001459,2]
[338329470,1726503032446,-157.97286414,0.0001459,2]
[338329471,1726503032458,-655.0721,0.0001459,2]
[338329472,1726503032467,-801.5619,0.0001459,2]
[338329473,1726503032477,-36859.4396,0.0001459,2]
[338329474,1726503032486,-1422.4903,0.0001459,2]